fUSD/lending_fUSD_20250623
["ID","MTS","AMOUNT","RATE_DAILY","PERIOD"]
[367111135,1750662682590,-1679.9,0.00028219,3]
[367111136,1750662682599,-1433.27,0.00028219,3]
[367111137,1750662682608,-490.0,0.00028219,3]
[367111138,1750662682618,-490.0,0.00028219,3]
[367111139,1750662682627,-490.0,0.00028219,3]
[367111140,1750662682637,-1066.4,0.00028219,3]
[367111141,1750662682646,-490.0,0.00028219,3]
[367111142,1750662682655,-572.95,0.00028219,3]
[367111143,1750662682665,-490.0,0.00028219,3]
[367111144,1750662682675,-1605.51,0.00028219,3]
[367111145,1750662682684,-490.0,0.00028219,3]
[367111146,1750662682693,-490.0,0.00028219,3]
[367111147,1750662682702,-1690.95,0.00028219,3]
[367111148,1750662682712,-1674.28,0.00028219,3]
[367111149,1750662682721,-490.0,0.00028219,3]
[367111150,1750662682731,-333.12635855,0.00028219,3]
[367111151,1750662682740,-490.0,0.00028219,3]
[367111152,1750662682749,-490.0,0.00028219,3]
[367111153,1750662682759,-426.50691966,0.00028219,3]
[367111154,1750662682769,-490.0,0.00028219,3]
[367111155,1750662682779,-638.77,0.00028219,3]
[367111156,1750662682788,-490.0,0.00028219,3]
[367111157,1750662682798,-1574.11,0.00028219,3]
[367111158,1750662682807,-378.81,0.00028219,3]
[367111159,1750662682816,-684.38,0.00028219,3]
[367111160,1750662682826,-490.0,0.00028219,3]
[367111161,1750662682837,-1278.36,0.00028219,3]
[367111162,1750662682846,-905.6,0.00028219,3]
[367111163,1750662682856,-1682.39,0.00028219,3]
[367111164,1750662682865,-1410.38,0.00028219,3]
[367111165,1750662682875,-1126.22,0.00028219,3]
[367111166,1750662682885,-292.2510235,0.00028219,3]
[367111167,1750662682894,-1883.69,0.00028219,3]
[367111168,1750662682904,-7415.21,0.00028219,3]
[367111169,1750662682913,-2332.56,0.00028219,3]
[367111170,1750662682922,-490.0,0.00028219,3]
[367111171,1750662682931,-490.0,0.00028219,3]
[367111172,1750662682941,-1248.93,0.00028219,3]
[367111173,1750662682951,-490.0,0.00028219,3]
[367111174,1750662682960,-1449.04,0.00028219,3]
[367111175,1750662682970,-490.0,0.00028219,3]
[367111176,1750662682980,-849.69,0.00028219,3]
[367111177,1750662682990,-883.32,0.00028219,3]
[367111178,1750662682999,-490.0,0.00028219,3]
[367111179,1750662683009,-587.88,0.00028219,3]
[367111180,1750662683019,-901.3,0.00028219,3]
[367111181,1750662683028,-498.65172867,0.00028219,3]
[367111182,1750662683038,-490.0,0.00028219,3]
[367111183,1750662683048,-1164.04,0.00028219,3]
[367111184,1750662683058,-490.0,0.00028219,3]
[367111185,1750662683068,-1753.14,0.00028219,3]
[367111186,1750662683077,-490.0,0.00028219,3]
[367111187,1750662683089,-4073.96,0.00028219,3]
[367111188,1750662683099,-10399.38,0.00028219,3]
[367111189,1750662683108,-490.0,0.00028219,3]
[367111190,1750662683118,-580.67,0.00028219,3]
[367111191,1750662683128,-490.00003094,0.00028219,3]
[367111192,1750662683138,-1448.46,0.00028219,3]
[367111193,1750662683148,-836.73,0.00028219,3]
[367111194,1750662683158,-918.93,0.00028219,3]
[367111195,1750662683168,-1355.08,0.00028219,3]
[367111196,1750662683178,-526.35,0.00028219,3]
[367111197,1750662683188,-283.96541935,0.00028219,3]
[367111198,1750662683197,-6824.52,0.00028219,3]
[367111199,1750662683207,-1900.51,0.00028219,3]
[367111200,1750662683216,-1016.76,0.00028219,3]
[367111201,1750662683226,-490.0,0.00028219,3]
[367111202,1750662683235,-3401.6,0.00028219,3]
[367111203,1750662683244,-490.0,0.00028219,3]
[367111204,1750662683254,-490.0,0.00028219,3]
[367111205,1750662683264,-3966.47,0.00028219,3]
[367111206,1750662683274,-1741.72,0.00028219,3]
[367111207,1750662683284,-490.0,0.00028219,3]
[367111208,1750662683293,-490.0,0.00028219,3]
[367111209,1750662683303,-490.0,0.00028219,3]
[367111210,1750662683313,-909.73,0.00028219,3]
[367111211,1750662683323,-608.52,0.00028219,3]
[367111212,1750662683333,-490.0,0.00028219,3]
[367111213,1750662683343,-934.07,0.00028219,3]
[367111214,1750662683353,-4949.36,0.00028219,3]
[367111215,1750662683362,-490.0,0.00028219,3]
[367111216,1750662683372,-2915.88,0.00028219,3]
[367111217,1750662683382,-490.0,0.00028219,3]
[367111218,1750662683391,-1585.93,0.00028219,3]
[367111219,1750662683401,-490.0,0.00028219,3]
[367111220,1750662683411,-490.0,0.00028219,3]
[367111221,1750662683421,-490.0,0.00028219,3]
[367111222,1750662683432,-18062.45,0.00028219,3]
[367111223,1750662683441,-814.19,0.00028219,3]
[367111224,1750662683451,-490.0,0.00028219,3]
[367111225,1750662683460,-3468.99,0.00028219,3]
[367111226,1750662683470,-1570.58,0.00028219,3]
[367111227,1750662683481,-197.4050537,0.00028219,3]
[367111228,1750662683491,-1672.97,0.00028219,3]
[367111229,1750662683500,-798.22,0.00028219,3]
[367111230,1750662683512,-789.6,0.00028219,3]
[367111231,1750662683522,-1533.06,0.00028219,3]
[367111232,1750662683532,-1681.4,0.00028219,3]
[367111233,1750662683541,-490.0,0.00028219,3]
[367111234,1750662683551,-490.0,0.00028219,3]
[367111235,1750662683560,-528.64,0.00028219,3]
[367111236,1750662683570,-1108.02,0.00028219,3]
[367111237,1750662683580,-1980.76,0.00028219,3]
[367111238,1750662683591,-2594.4,0.00028219,3]
[367111239,1750662683600,-490.0,0.00028219,3]
[367111240,1750662683609,-490.0,0.00028219,3]
[367111241,1750662683619,-1623.55,0.00028219,3]
[367111242,1750662683628,-490.0,0.00028219,3]
[367111243,1750662683638,-891.21,0.00028219,3]
[367111244,1750662683647,-1019.18,0.00028219,3]
[367111245,1750662683657,-3127.29,0.00028219,3]
[367111246,1750662683666,-1174.99,0.00028219,3]
[367111247,1750662683675,-490.0,0.00028219,3]
[367111248,1750662683687,-1569.21,0.00028219,3]
[367111249,1750662683696,-490.0,0.00028219,3]
[367111250,1750662683706,-490.0,0.00028219,3]
[367111251,1750662683715,-490.0,0.00028219,3]
[367111252,1750662683725,-1940.59,0.00028219,3]
[367111253,1750662683734,-1749.09,0.00028219,3]
[367111254,1750662683744,-2329.34,0.00028219,3]
[367111255,1750662683753,-1830.85,0.00028219,3]
[367111256,1750662683762,-664.92,0.00028219,3]
[367111257,1750662683772,-1700.21,0.00028219,3]
[367111258,1750662683782,-490.0,0.00028219,3]
[367111259,1750662683791,-2769.81,0.00028219,3]
[367111260,1750662683800,-490.0,0.00028219,3]
[367111261,1750662683809,-6713.02,0.00028219,3]
[367111262,1750662683818,-777.56,0.00028219,3]
[367111263,1750662683828,-490.0,0.00028219,3]
[367111264,1750662683837,-2394.73,0.00028219,3]
[367111265,1750662683846,-1294.78,0.00028219,3]
[367111266,1750662683855,-826.09,0.00028219,3]
[367111267,1750662683865,-760.04,0.00028219,3]
[367111268,1750662683874,-490.0,0.00028219,3]
[367111269,1750662683883,-555.71,0.00028219,3]
[367111270,1750662683892,-1626.24,0.00028219,3]
[367111271,1750662683901,-4056.64,0.00028219,3]
[367111272,1750662683911,-713.4,0.00028219,3]
[367111273,1750662683920,-490.0,0.00028219,3]
[367111274,1750662683929,-1498.64,0.00028219,3]
[367111275,1750662683939,-1457.21,0.00028219,3]
[367111276,1750662683949,-490.0,0.00028219,3]
[367111277,1750662683958,-737.54,0.00028219,3]
[367111278,1750662683967,-1307.83,0.00028219,3]
[367111279,1750662683976,-728.06,0.00028219,3]
[367111280,1750662683986,-490.0,0.00028219,3]
[367111281,1750662683995,-1832.35,0.00028219,3]
[367111282,1750662684005,-1380.67,0.00028219,3]
[367111283,1750662684014,-490.0,0.00028219,3]
[367111284,1750662684023,-2228.14,0.00028219,3]
[367111285,1750662684033,-2372.02,0.00028219,3]
[367111286,1750662684042,-490.0,0.00028219,3]
[367111287,1750662684051,-490.0,0.00028219,3]
[367111288,1750662684061,-788.8,0.00028219,3]
[367111289,1750662684070,-3318.96,0.00028219,3]
[367111290,1750662684080,-709.01,0.00028219,3]
[367111291,1750662684089,-862.45,0.00028219,3]
[367111292,1750662684098,-490.0,0.00028219,3]
[367111293,1750662684107,-1200.13,0.00028219,3]
[367111294,1750662684117,-1916.86,0.00028219,3]
[367111295,1750662684126,-490.0,0.00028219,3]
[367111296,1750662684135,-490.0,0.00028219,3]
[367111297,1750662684145,-490.0,0.00028219,3]
[367111298,1750662684155,-678.77,0.00028219,3]
[367111299,1750662684164,-1366.52,0.00028219,3]
[367111300,1750662684174,-4654.08,0.00028219,3]
[367111301,1750662684183,-515.04,0.00028219,3]
[367111302,1750662684192,-788.62,0.00028219,3]
[367111303,1750662684202,-553.78,0.00028219,3]
[367111304,1750662684211,-1578.33,0.00028219,3]
[367111305,1750662684220,-1107.26,0.00028219,3]
[367111306,1750662684230,-498.97,0.00028219,3]
[367111307,1750662684240,-7394.17,0.00028219,3]
[367111308,1750662684249,-490.0,0.00028219,3]
[367111309,1750662684259,-1624.99,0.00028219,3]
[367111310,1750662684269,-490.0,0.00028219,3]
[367111311,1750662684278,-1036.64,0.00028219,3]
[367111312,1750662684287,-490.0,0.00028219,3]
[367111313,1750662684297,-500.0,0.00028219,3]
[367111314,1750662684306,-2834.49,0.00028219,3]
[367111315,1750662684316,-12536.04,0.00028219,3]
[367111316,1750662684326,-490.0,0.00028219,3]
[367111317,1750662684336,-3543.99,0.00028219,3]
[367111318,1750662684346,-1768.62,0.00028219,3]
[367111319,1750662684355,-490.0,0.00028219,3]
[367111320,1750662684364,-497.45,0.00028219,3]
[367111321,1750662684373,-490.0,0.00028219,3]
[367111322,1750662684382,-1947.91,0.00028219,3]
[367111323,1750662684391,-490.0,0.00028219,3]
[367111324,1750662684401,-510.26,0.00028219,3]
[367111325,1750662684410,-1619.96,0.00028219,3]
[367111326,1750662684419,-510.41,0.00028219,3]
[367111327,1750662684430,-5190.35,0.00028219,3]
[367111328,1750662684439,-9852.89,0.00028219,3]
[367111329,1750662684449,-490.0,0.00028219,3]
[367111330,1750662684458,-490.0,0.00028219,3]
[367111331,1750662684467,-1552.44,0.00028219,3]
[367111332,1750662684477,-814.87,0.00028219,3]
[367111333,1750662684487,-2783.14,0.00028219,3]
[367111334,1750662684497,-490.0,0.00028219,3]
[367111335,1750662684506,-1717.08,0.00028219,3]
[367111336,1750662684519,-2330.84,0.00028219,3]
[367111337,1750662684528,-1630.26,0.00028219,3]
[367111338,1750662684537,-752.02,0.00028219,3]
[367111339,1750662684547,-490.0,0.00028219,3]
[367111340,1750662684556,-1618.67,0.00028219,3]
[367111341,1750662684566,-490.0,0.00028219,3]
[367111342,1750662684575,-1151.97,0.00028219,3]
[367111343,1750662684585,-915.84,0.00028219,3]
[367111344,1750662684595,-670.37,0.00028219,3]
[367111345,1750662684604,-1776.65,0.00028219,3]
[367111346,1750662684613,-3986.65,0.00028219,3]
[367111347,1750662684622,-1960.82,0.00028219,3]
[367111348,1750662684631,-1591.01,0.00028219,3]
[367111349,1750662684641,-6065.53,0.00028219,3]
[367111350,1750662684956,-1605.38,0.00028219,3]
[367111351,1750662684970,-1642.63,0.00028219,3]
[367111352,1750662684980,-798.12,0.00028219,3]
[367111353,1750662684990,-490.0,0.00028219,3]
[367111354,1750662684999,-490.0,0.00028219,3]
[367111355,1750662685009,-490.0,0.00028219,3]
[367111356,1750662685018,-1292.66,0.00028219,3]
[367111357,1750662685028,-2292.5,0.00028219,3]
[367111358,1750662685037,-4219.23,0.00028219,3]
[367111359,1750662685047,-2903.63,0.00028219,3]
[367111360,1750662685056,-1562.1,0.00028219,3]
[367111361,1750662685065,-765.43,0.00028219,3]
[367111362,1750662685075,-1872.32,0.00028219,3]
[367111363,1750662685085,-490.0,0.00028219,3]
[367111364,1750662685095,-3240.53,0.00028219,3]
[367111365,1750662685105,-492.32,0.00028219,3]
[367111366,1750662685115,-1499.13,0.00028219,3]
[367111367,1750662685125,-2262.37,0.00028219,3]
[367111368,1750662685135,-1684.89,0.00028219,3]
[367111369,1750662685145,-1822.31,0.00028219,3]
[367111370,1750662685155,-490.0,0.00028219,3]
[367111371,1750662685165,-745.32,0.00028219,3]
[367111372,1750662685175,-490.0,0.00028219,3]
[367111373,1750662685184,-490.0,0.00028219,3]
[367111374,1750662685194,-1565.33,0.00028219,3]
[367111375,1750662685203,-3248.59,0.00028219,3]
[367111376,1750662685213,-1599.78,0.00028219,3]
[367111377,1750662685222,-490.0,0.00028219,3]
[367111378,1750662685232,-1190.83,0.00028219,3]
[367111379,1750662685243,-795.18,0.00028219,3]
[367111380,1750662685252,-490.0,0.00028219,3]
[367111381,1750662685263,-638.67,0.00028219,3]
[367111382,1750662685272,-8785.1,0.00028219,3]
[367111383,1750662685282,-849.6,0.00028219,3]
[367111384,1750662685292,-1583.66,0.00028219,3]
[367111385,1750662685302,-1787.94,0.00028219,3]
[367111386,1750662685311,-1444.68,0.00028219,3]
[367111387,1750662685321,-490.0,0.00028219,3]
[367111388,1750662685331,-507.9,0.00028219,3]
[367111389,1750662685341,-1335.88,0.00028219,3]
[367111390,1750662685351,-948.02,0.00028219,3]
[367111391,1750662685361,-293.11228903,0.00028219,3]
[367111392,1750662685370,-490.0,0.00028219,3]
[367111393,1750662685380,-3963.91,0.00028219,3]
[367111394,1750662685389,-207.66371052,0.00028219,3]
[367111395,1750662685399,-490.0,0.00028219,3]
[367111396,1750662685408,-1578.99,0.00028219,3]
[367111397,1750662685418,-1445.82,0.00028219,3]
[367111398,1750662685427,-1285.59,0.00028219,3]
[367111399,1750662685437,-490.0,0.00028219,3]
[367111400,1750662685446,-490.0,0.00028219,3]
[367111401,1750662685456,-490.0,0.00028219,3]
[367111402,1750662685465,-375.26,0.00028219,3]
[367111403,1750662685475,-490.0,0.00028219,3]
[367111404,1750662685484,-728.45,0.00028219,3]
[367111405,1750662685494,-490.0,0.00028219,3]
[367111406,1750662685504,-490.0,0.00028219,3]
[367111407,1750662685517,-806.96,0.00028219,3]
[367111408,1750662685527,-1797.81,0.00028219,3]
[367111409,1750662685536,-1831.64,0.00028219,3]
[367111410,1750662685546,-1432.05,0.00028219,3]
[367111411,1750662685557,-919.07,0.00028219,3]
[367111412,1750662685566,-14900.62,0.00028219,3]
[367111413,1750662685576,-1833.67,0.00028219,3]
[367111414,1750662685588,-490.0,0.00028219,3]
[367111415,1750662685598,-2078.39,0.00028219,3]
[367111416,1750662685607,-510.45,0.00028219,3]
[367111417,1750662685617,-490.0,0.00028219,3]
[367111418,1750662685627,-490.0,0.00028219,3]
[367111419,1750662685637,-4833.93,0.00028219,3]
[367111420,1750662685647,-490.0,0.00028219,3]
[367111421,1750662685656,-1601.31,0.00028219,3]
[367111422,1750662685666,-759.06,0.00028219,3]
[367111423,1750662685675,-873.41,0.00028219,3]
[367111424,1750662685684,-791.68,0.00028219,3]
[367111425,1750662685694,-4669.42,0.00028219,3]
[367111426,1750662685704,-490.0,0.00028219,3]
[367111427,1750662685713,-1693.53,0.00028219,3]
[367111428,1750662685723,-990.18,0.00028219,3]
[367111429,1750662685733,-1034.99,0.00028219,3]
[367111430,1750662685745,-1620.6,0.00028219,3]
[367111431,1750662685754,-490.0,0.00028219,3]
[367111432,1750662685764,-490.0,0.00028219,3]
[367111433,1750662685773,-1653.45,0.00028219,3]
[367111434,1750662685782,-1389.7,0.00028219,3]
[367111435,1750662685792,-3451.15,0.00028219,3]
[367111436,1750662685802,-490.0,0.00028219,3]
[367111437,1750662685812,-1000.0,0.00028219,3]
[367111438,1750662685822,-490.0,0.00028219,3]
[367111439,1750662685832,-1000.0,0.00028219,3]
[367111440,1750662685843,-194.07353495,0.00028219,3]
[367111441,1750662685853,-490.0,0.00028219,3]
[367111442,1750662685863,-993.54,0.00028219,3]
[367111443,1750662685873,-2416.24,0.00028219,3]
[367111444,1750662685887,-490.0,0.00028219,3]
[367111445,1750662685897,-566.41,0.00028219,3]
[367111446,1750662685906,-11090.94,0.00028219,3]
[367111447,1750662685915,-1799.28,0.00028219,3]
[367111448,1750662685925,-1221.42,0.00028219,3]
[367111449,1750662685935,-2070.18,0.00028219,3]
[367111450,1750662685946,-1701.67,0.00028219,3]
[367111451,1750662685955,-1378.47,0.00028219,3]
[367111452,1750662685966,-1087.15,0.00028219,3]
[367111453,1750662685975,-1736.17,0.00028219,3]
[367111454,1750662685985,-1351.61,0.00028219,3]
[367111455,1750662685995,-490.0,0.00028219,3]
[367111456,1750662686006,-1816.97,0.00028219,3]
[367111457,1750662686016,-709.09,0.00028219,3]
[367111458,1750662686026,-490.0,0.00028219,3]
[367111459,1750662686037,-1834.95,0.00028219,3]
[367111460,1750662686046,-1672.0,0.00028219,3]
[367111461,1750662686056,-1571.12,0.00028219,3]
[367111462,1750662686066,-490.0,0.00028219,3]
[367111463,1750662686076,-490.0,0.00028219,3]
[367111464,1750662686088,-4884.01,0.00028219,3]
[367111465,1750662686098,-351.63097364,0.00028219,3]
[367111466,1750662686108,-1729.07,0.00028219,3]
[367111467,1750662686118,-8073.75,0.00028219,3]
[367111468,1750662686128,-1652.26,0.00028219,3]
[367111469,1750662686138,-718.8,0.00028219,3]
[367111470,1750662686148,-490.0,0.00028219,3]
[367111471,1750662686159,-867.32,0.00028219,3]
[367111472,1750662686169,-490.0,0.00028219,3]
[367111473,1750662686180,-30050.84,0.00028219,3]
[367111474,1750662686191,-1482.76,0.00028219,3]
[367111475,1750662686201,-1513.2,0.00028219,3]
[367111476,1750662686211,-1869.9,0.00028219,3]
[367111477,1750662686220,-490.0,0.00028219,3]
[367111478,1750662686230,-490.0,0.00028219,3]
[367111479,1750662686240,-490.0,0.00028219,3]
[367111480,1750662686250,-1291.21,0.00028219,3]
[367111481,1750662686260,-825.47,0.00028219,3]
[367111482,1750662686270,-490.0,0.00028219,3]
[367111483,1750662686280,-529.57,0.00028219,3]
[367111484,1750662686290,-1000.93,0.00028219,3]
[367111485,1750662686299,-1013.98,0.00028219,2]
[367111486,1750662686310,-490.0,0.00028219,3]
[367111487,1750662686319,-749.71,0.00028219,3]
[367111488,1750662686329,-2626.45,0.00028219,3]
[367111489,1750662686341,-1301.95,0.00028219,3]
[367111490,1750662686350,-1553.91,0.00028219,3]
[367111491,1750662686360,-914.97,0.00028219,3]
[367111492,1750662686370,-733.17,0.00028219,3]
[367111493,1750662686380,-5331.91,0.00028219,3]
[367111494,1750662686390,-6188.74,0.00028219,3]
[367111495,1750662686400,-2204.74,0.00028219,3]
[367111496,1750662686410,-742.07,0.00028219,3]
[367111497,1750662686420,-1201.89,0.00028219,3]
[367111498,1750662686430,-866.05,0.00028219,3]
[367111499,1750662686440,-5637.09,0.00028219,3]
[367111500,1750662686450,-716.87,0.00028219,3]
[367111501,1750662686460,-490.0,0.00028219,3]
[367111502,1750662686470,-2465.19,0.00028219,3]
[367111503,1750662686479,-1651.87,0.00028219,3]
[367111504,1750662686491,-1607.85,0.00028219,3]
[367111505,1750662686501,-1906.99,0.00028219,3]
[367111506,1750662686514,-572.05,0.00028219,3]
[367111507,1750662686525,-1536.26,0.00028219,3]
[367111508,1750662686536,-1920.56,0.00028219,3]
[367111509,1750662686545,-2965.58,0.00028219,3]
[367111510,1750662686555,-1131.73,0.00028219,3]
[367111511,1750662686564,-764.72,0.00028219,3]
[367111512,1750662686574,-3001.5,0.00028219,3]
[367111513,1750662686584,-594.04,0.00028219,3]
[367111514,1750662686593,-490.0,0.00028219,3]
[367111515,1750662686603,-490.0,0.00028219,3]
[367111516,1750662686614,-1385.46,0.00028219,3]
[367111517,1750662686625,-1205.8,0.00028219,3]
[367111518,1750662686637,-490.0,0.00028219,3]
[367111519,1750662686649,-1261.87,0.00028219,3]
[367111520,1750662686661,-759.47,0.00028219,3]
[367111521,1750662686671,-150.19,0.00028253,2]
[367111522,1750662686682,-1258.03765544,0.00028314,18]
[367111523,1750662686692,-1511.09276146,0.00028331,2]
[367111524,1750662686702,-227.38,0.00028349,2]
[367111525,1750662686711,-211.0,0.0002836,2]
[367111526,1750662686721,-1504.0339588,0.00028468,5]
[367111527,1750662686730,-2725.49944656,0.00028493,2]
[367111528,1750662686740,-5455.753665,0.00028493,3]
[367111529,1750662686751,-151.476984,0.00028493,3]
[367111530,1750662686762,-490.0,0.00028493,3]
[367111531,1750662686773,-490.0,0.00028493,3]
[367111532,1750662686783,-490.0,0.00028493,3]
[367111533,1750662686795,-906.91,0.00028493,3]
[367111534,1750662686808,-490.0,0.00028493,3]
[367111535,1750662686817,-490.0,0.00028493,3]
[367111536,1750662686827,-490.0,0.00028493,3]
[367111537,1750662686839,-733.39,0.00028493,3]
[367111538,1750662686849,-490.0,0.00028493,3]
[367111539,1750662686859,-490.0,0.00028493,3]
[367111540,1750662686869,-490.0,0.00028493,3]
[367111541,1750662686881,-490.0,0.00028493,3]
[367111542,1750662686891,-252.921479,0.00028493,3]
[367111543,1750662686901,-490.0,0.00028493,3]
[367111544,1750662686912,-958.78,0.00028493,3]
[367111545,1750662686921,-972.11,0.00028493,3]
[367111546,1750662686931,-490.0,0.00028493,3]
[367111547,1750662686941,-2591.829598,0.00028493,3]
[367111548,1750662686950,-615.11,0.00028493,3]
[367111549,1750662686960,-804.23,0.00028493,3]
[367111550,1750662686970,-490.0,0.00028493,3]
[367111551,1750662686980,-490.0,0.00028493,3]
[367111552,1750662686989,-490.0,0.00028493,3]
[367111553,1750662686999,-490.0,0.00028493,3]
[367111554,1750662687008,-490.0,0.00028493,3]
[367111555,1750662687018,-490.0,0.00028493,3]
[367111556,1750662687027,-490.0,0.00028493,3]
[367111557,1750662687037,-490.0,0.00028493,3]
[367111558,1750662687046,-490.0,0.00028493,3]
[367111559,1750662687056,-490.0,0.00028493,3]
[367111560,1750662687067,-490.0,0.00028493,3]
[367111561,1750662687077,-1075.31,0.00028493,3]
[367111562,1750662687090,-490.0,0.00028493,3]
[367111563,1750662687101,-490.0,0.00028493,3]
[367111564,1750662687111,-811.41,0.00028493,3]
[367111565,1750662687121,-663.45,0.00028493,3]
[367111566,1750662687131,-695.49,0.00028493,3]
[367111567,1750662687140,-490.0,0.00028493,3]
[367111568,1750662687150,-425.15346436,0.00028493,3]
[367111569,1750662687161,-490.0,0.00028493,3]
[367111570,1750662687171,-977.66,0.00028493,3]
[367111571,1750662687180,-490.0,0.00028493,3]
[367111572,1750662687190,-833.21,0.00028493,3]
[367111573,1750662687200,-591.25,0.00028493,3]
[367111574,1750662687210,-526.263632,0.00028493,3]
[367111575,1750662687220,-490.0,0.00028493,3]
[367111576,1750662687230,-690.16,0.00028493,3]
[367111577,1750662687240,-449.44989991,0.00028493,3]
[367111578,1750662687249,-1109.36,0.00028493,3]
[367111579,1750662687259,-490.0,0.00028493,3]
[367111580,1750662687270,-490.0,0.00028493,3]
[367111581,1750662687279,-526.92,0.00028493,3]
[367111582,1750662687290,-490.0,0.00028493,3]
[367111583,1750662687300,-362.32900084,0.00028493,3]
[367111584,1750662687310,-427.87699809,0.00028493,3]
[367111585,1750662687320,-519.11,0.00028493,3]
[367111586,1750662687330,-490.0,0.00028493,3]
[367111587,1750662687341,-970.12,0.00028493,3]
[367111588,1750662687351,-490.0,0.00028493,3]
[367111589,1750662687361,-1478.36,0.00028493,3]
[367111590,1750662687371,-490.0,0.00028493,3]
[367111591,1750662687493,-490.0,0.00028493,3]
[367111592,1750662687503,-490.0,0.00028493,3]
[367111593,1750662687515,-490.0,0.00028493,3]
[367111594,1750662687524,-178.19682788,0.00028493,3]
[367111595,1750662687534,-1376.6,0.00028493,3]
[367111596,1750662687543,-490.0,0.00028493,3]
[367111597,1750662687554,-889.62,0.00028493,3]
[367111598,1750662687563,-490.0,0.00028493,3]
[367111599,1750662687572,-490.0,0.00028493,3]
[367111600,1750662687583,-1155.19,0.00028493,3]
[367111601,1750662687593,-490.0,0.00028493,3]
[367111602,1750662687603,-490.0,0.00028493,3]
[367111603,1750662687613,-495.01,0.00028493,3]
[367111604,1750662687622,-490.0,0.00028493,3]
[367111605,1750662687632,-668.52,0.00028493,3]
[367111606,1750662687641,-586.16,0.00028493,3]
[367111607,1750662687651,-490.0,0.00028493,3]
[367111608,1750662687660,-698.01,0.00028493,3]
[367111609,1750662687670,-490.0,0.00028493,3]
[367111610,1750662687679,-490.0,0.00028493,3]
[367111611,1750662687689,-490.0,0.00028493,3]
[367111612,1750662687698,-490.0,0.00028493,3]
[367111613,1750662687708,-490.0,0.00028493,3]
[367111614,1750662687717,-644.39,0.00028493,3]
[367111615,1750662687726,-617.7,0.00028493,3]
[367111616,1750662687735,-229.3826556,0.00028493,3]
[367111617,1750662687744,-826.8,0.00028493,3]
[367111618,1750662687754,-490.0,0.00028493,3]
[367111619,1750662687763,-490.0,0.00028493,3]
[367111620,1750662687772,-490.0,0.00028493,3]
[367111621,1750662687781,-490.0,0.00028493,3]
[367111622,1750662687791,-490.0,0.00028493,3]
[367111623,1750662687800,-490.0,0.00028493,3]
[367111624,1750662687809,-490.0,0.00028493,3]
[367111625,1750662687818,-490.0,0.00028493,3]
[367111626,1750662687827,-626.46,0.00028493,3]
[367111627,1750662687838,-490.0,0.00028493,3]
[367111628,1750662687847,-490.0,0.00028493,3]
[367111629,1750662687856,-490.0,0.00028493,3]
[367111630,1750662687865,-490.0,0.00028493,3]
[367111631,1750662687875,-490.0,0.00028493,3]
[367111632,1750662687884,-841.55,0.00028493,3]
[367111633,1750662687893,-625.27,0.00028493,3]
[367111634,1750662687902,-490.0,0.00028493,3]